bitfinex-derivatives/quotes_SOLF0:USTF0_20251018
["timestamp","ask_amount","ask_price","bid_price","bid_amount"]
[1760799043775,4.29351934,185.65,185.57,62.0]
[1760799044079,10.43394941,185.64,185.56,2.75]
[1760799044278,6.14020936,185.64,185.56,2.75]
[1760799044974,4.8474,185.62,185.56,2.75]
[1760799046281,10.98690936,185.64,185.56,2.75]
[1760799047979,10.98690936,185.64,185.56,7.5986]
[1760799048877,4.8471,185.63,185.56,2.75]
[1760799049081,2.69,185.62,185.56,2.75]
[1760799049985,7.5374,185.62,185.56,2.75]
[1760799050479,2.69,185.62,185.56,2.75]
[1760799052083,2.69,185.62,185.56,7.5986]
[1760799054483,10.79650936,185.66,185.58,2.79]
[1760799054686,4.27895957,185.65,185.58,2.79]
[1760799054882,2.69,185.66,185.58,2.79]
[1760799055087,8.28057835,185.69,185.58,2.79]
[1760799055088,2.69,185.64,185.58,2.79]
[1760799055484,7.63539353,185.68,185.58,2.79]
[1760799055684,4.27949626,185.67,185.58,2.79]
[1760799055994,11.81579626,185.66,185.58,2.79]
[1760799056286,4.27957918,185.65,185.58,2.79]
[1760799056493,2.69,185.66,185.58,2.79]
[1760799056988,4.8466,185.65,185.58,2.79]
[1760799057184,2.69,185.66,185.58,7.6381]
[1760799057387,2.69,185.66,185.59,2.79]
[1760799057592,2.69,185.69,185.59,2.79]
[1760799057795,4.27986819,185.68,185.59,2.79]
[1760799058088,2.69,185.69,185.59,2.79]
[1760799058280,2.69,185.67,185.59,6.05020936]
[1760799058991,7.536,185.67,185.59,10.89800936]
[1760799059789,7.536,185.67,185.6,4.8476]
[1760799061291,2.69,185.67,185.6,4.8476]
[1760799063489,16.04269342,185.73,185.51,62.0]
[1760799063490,4.28015521,185.66,185.52,2.79]
[1760799063689,6.97015521,185.65,185.54,2.79]
[1760799063887,4.28015521,185.64,185.57,2.79]
[1760799064084,2.69,185.65,185.57,2.79]
[1760799065097,7.5366,185.65,185.57,2.79]
[1760799065393,7.5366,185.65,185.58,2.08845695]
[1760799066996,7.5366,185.65,185.54,44.86]
[1760799066997,2.66,185.6,185.54,2.08845695]
[1760799067196,2.66,185.6,185.57,2.88]
[1760799067396,2.66,185.64,185.57,2.88]
[1760799067599,4.28090126,185.63,185.57,2.88]
[1760799067796,2.66,185.64,185.57,2.88]
[1760799067992,4.28090126,185.63,185.57,2.88]
[1760799068187,2.66,185.64,185.57,2.88]
[1760799068493,5.02036899,185.68,185.57,2.88]
[1760799068494,2.66,185.61,185.57,2.88]
[1760799073801,2.66,185.6,185.55,6.93735695]
[1760799074001,2.66,185.59,185.55,9.81735695]
[1760799074398,2.66,185.59,185.56,2.88]
[1760799074603,4.74845695,185.6,185.53,4.8495]
[1760799075204,4.74845695,185.6,185.54,2.88]
[1760799075996,9.59635695,185.6,185.54,2.88]
[1760799076503,4.8484,185.58,185.52,44.86]
[1760799076707,9.72685695,185.58,185.52,2.66]
[1760799080104,7.6384,185.58,185.52,2.66]
[1760799081012,7.6384,185.58,185.52,7.5097]
[1760799081308,4.8486,185.57,185.52,2.66]
[1760799081505,2.79,185.56,185.51,44.86]
[1760799081909,2.79,185.56,185.5,4.8502]
[1760799083108,2.79,185.56,185.51,2.08845695]
[1760799083407,7.6389,185.56,185.49,47.52]
[1760799083612,2.79,185.55,185.51,4.74845695]
[1760799084813,7.6393,185.54,185.48,0.93712131]
[1760799085116,2.79,185.56,185.49,4.74845695]
[1760799085808,2.79,185.58,185.51,2.08845695]
[1760799086007,2.08845695,185.61,185.52,2.08845695]
[1760799086201,7.0679821,185.6,185.52,2.08845695]
[1760799086408,2.79,185.58,185.52,2.08845695]
[1760799087211,4.27835475,185.57,185.52,2.08845695]
[1760799087408,2.79,185.55,185.52,2.08845695]
[1760799088311,7.6384,185.58,185.52,2.08845695]
[1760799089212,2.79,185.57,185.54,2.08845695]
[1760799089414,4.8484,185.58,185.54,2.08845695]
[1760799089712,2.79,185.62,185.56,2.08845695]
[1760799089905,4.27575638,185.61,185.56,2.08845695]
[1760799090105,4.27602672,185.6,185.56,2.08845695]
[1760799090411,4.848,185.6,185.56,2.08845695]
[1760799090710,2.79,185.58,185.54,2.08845695]
[1760799090912,2.79,185.62,185.54,2.08845695]
[1760799091112,7.05196617,185.61,185.6,2.08845695]
[1760799091315,2.79,185.61,185.6,2.08845695]
[1760799091510,7.10882594,185.66,185.58,2.08845695]
[1760799091811,2.79,185.64,185.56,2.08845695]
[1760799092014,2.79,185.62,185.56,2.08845695]
[1760799092215,2.79,185.6,185.56,2.08845695]
[1760799092414,2.79,185.64,185.56,2.08845695]
[1760799092617,4.26120967,185.63,185.56,2.08845695]
[1760799092815,2.79,185.61,185.56,2.08845695]
[1760799093117,7.6376,185.61,185.58,4.74845695]
[1760799093814,4.8471,185.63,185.58,2.66]
[1760799094012,7.6371,185.63,185.6,2.08845695]
[1760799094212,2.79,185.62,185.6,2.08845695]
[1760799095209,4.8471,185.63,185.6,2.08845695]
[1760799095210,7.6371,185.63,185.6,2.08845695]
[1760799095919,4.8471,185.63,185.58,2.66]
[1760799096111,2.79,185.62,185.6,2.08845695]
[1760799097019,2.79,185.67,185.6,4.74845695]
[1760799097216,4.26058104,185.66,185.64,2.08845695]
[1760799097419,2.79,185.67,185.64,2.08845695]
[1760799097617,4.26034304,185.66,185.64,2.08845695]
[1760799097918,5.02036899,185.7,185.64,2.08845695]
[1760799098216,9.18943049,185.69,185.64,2.08845695]
[1760799098417,2.79,185.67,185.64,2.08845695]
[1760799098718,4.26034253,185.66,185.64,2.08845695]
[1760799098919,2.79,185.67,185.64,2.08845695]
[1760799099220,4.26023199,185.66,185.64,2.08845695]
[1760799099410,2.79,185.71,185.64,4.74845695]
[1760799099617,2.79,185.69,185.66,2.08845695]
[1760799099921,4.25970773,185.68,185.66,4.74845695]
[1760799100118,2.79,185.69,185.66,4.74845695]
[1760799100420,4.25948534,185.68,185.66,4.74845695]
[1760799100619,21.43630468,185.73,185.67,2.66]
[1760799100620,4.8449,185.71,185.67,2.66]
[1760799100819,7.04936512,185.7,185.68,2.08845695]
[1760799101021,4.25936512,185.69,185.68,2.08845695]
[1760799101423,2.79,185.7,185.68,2.08845695]
[1760799102124,2.79,185.69,185.63,2.66]
[1760799102421,2.79,185.69,185.68,2.08845695]
[1760799104222,2.79,185.69,185.66,2.08845695]
[1760799104523,2.79,185.69,185.64,2.08845695]
[1760799104722,2.08845695,185.67,185.58,2.08845695]
[1760799104928,4.87845695,185.67,185.6,2.08845695]
[1760799105229,2.79,185.67,185.6,2.08845695]
[1760799105832,2.79,185.67,185.62,2.08845695]
[1760799106231,2.79,185.67,185.63,2.66]
[1760799106526,7.55871671,185.7,185.63,2.74]
[1760799106727,2.62,185.7,185.65,2.74]
[1760799107230,2.62,185.72,185.65,2.74]
[1760799107432,4.25776741,185.71,185.65,2.74]
[1760799107621,6.87776741,185.7,185.65,2.74]
[1760799107822,2.62,185.7,185.65,2.74]
[1760799108131,7.4652,185.7,185.65,2.74]
[1760799108427,2.62,185.69,185.63,2.08845695]
[1760799108931,7.4655,185.69,185.63,2.08845695]
[1760799109330,4.70845695,185.69,185.62,2.74]
[1760799109530,4.25764542,185.68,185.62,2.74]
[1760799109726,4.8461,185.67,185.62,2.74]
[1760799110431,2.62,185.66,185.61,2.08845695]
[1760799110627,7.4661,185.67,185.6,2.74]
[1760799110832,9.55535695,185.64,185.57,2.08845695]
[1760799111528,2.62,185.64,185.58,2.74]
[1760799111735,2.62,185.64,185.6,2.74]
[1760799112129,6.93465695,185.66,185.6,2.74]
[1760799112732,2.62,185.67,185.6,2.74]
[1760799113631,2.08845695,185.66,185.6,2.74]
[1760799114236,2.08845695,185.62,185.56,2.74]
[1760799114832,2.62,185.6,185.52,2.08845695]
[1760799115036,4.70845695,185.6,185.53,2.74]
[1760799116639,2.08845695,185.58,185.52,2.74]
[1760799117136,2.08845695,185.58,185.52,64.74]
[1760799117639,5.01453964,185.67,185.49,2.08845695]
[1760799117640,2.08845695,185.56,185.49,7.5905]
[1760799118429,2.08845695,185.54,185.5,3.6776263]
[1760799118635,4.70845695,185.54,185.5,2.74]
[1760799119028,2.08845695,185.54,185.47,0.93795483]
[1760799119233,9.18655111,185.61,185.47,3.67795483]
[1760799119234,4.70845695,185.52,185.47,3.67795483]
[1760799120133,4.70845695,185.52,185.47,2.74]
[1760799120336,2.08845695,185.52,185.47,2.74]
[1760799120534,2.62,185.51,185.47,2.74]
[1760799121131,2.62,185.51,185.44,8.53000653]
[1760799121132,2.08845695,185.5,185.44,8.53000653]
[1760799121838,4.70845695,185.5,185.45,7.5915]
[1760799122734,2.62,185.5,185.45,7.5915]
[1760799122939,2.08845695,185.56,185.46,2.08845695]
[1760799123140,2.08845695,185.56,185.47,2.74]
[1760799123537,2.08845695,185.56,185.49,4.8506]
[1760799123745,9.17673328,185.63,185.49,7.5906]
[1760799123746,2.62,185.53,185.49,7.5906]
[1760799124342,2.62,185.58,185.49,2.74]
[1760799124543,2.08845695,185.56,185.49,2.74]
[1760799124742,2.62,185.58,185.52,2.08845695]
[1760799125043,2.62,185.58,185.52,6.93805695]
[1760799125244,2.62,185.58,185.52,4.8496]
[1760799127146,2.66,185.57,185.5,4.8503]
[1760799127742,3.26549415,185.58,185.47,2.8]
[1760799127951,3.26549415,185.54,185.44,3.73810653]
[1760799128251,2.66,185.53,185.44,3.73810653]
[1760799128451,2.66,185.53,185.44,8.59000653]
[1760799129051,7.5098,185.53,185.44,8.59000653]
[1760799130051,7.5098,185.53,185.45,4.8515]
[1760799130947,7.5098,185.53,185.46,7.6512]
[1760799131147,3.26549415,185.54,185.46,2.8]
[1760799131951,3.26549415,185.54,185.47,4.851]
[1760799132350,4.8492,185.55,185.47,4.851]
[1760799132645,10.77499415,185.54,185.46,2.8]
[1760799134252,10.77499415,185.54,185.46,7.6512]
[1760799134950,7.5095,185.54,185.46,7.6512]
[1760799135346,5.92549415,185.61,185.5,2.8]
[1760799136550,2.66,185.61,185.55,3.26549415]
[1760799136849,2.77,185.65,185.56,2.72]
[1760799138153,2.77,185.65,185.58,3.26549415]
[1760799138457,2.77,185.65,185.59,2.72]
[1760799138955,2.77,185.65,185.59,7.5678]
[1760799139352,4.846,185.67,185.59,7.5678]
[1760799139658,2.77,185.68,185.59,7.5678]
[1760799142156,2.77,185.68,185.61,3.26549415]
[1760799142357,2.77,185.68,185.61,5.98549415]
[1760799142560,75.06954063,185.72,185.62,2.72]
[1760799144057,4.8451,185.71,185.62,2.72]
[1760799144364,70.22474063,185.72,185.62,2.72]
[1760799144657,4.8454,185.69,185.62,2.72]
[1760799145555,4.8449,185.71,185.62,2.72]
[1760799145758,4.8449,185.71,185.64,3.26549415]
[1760799145963,4.8449,185.71,185.62,2.72]
[1760799146160,2.77,185.7,185.63,3.26549415]
[1760799146753,2.77,185.66,185.55,2.72]
[1760799146953,2.77,185.66,185.59,5.98549415]
[1760799148254,2.77,185.66,185.59,2.72]
[1760799148957,2.77,185.66,185.56,4.8487]
[1760799149162,3.26549415,185.66,185.55,5.98549415]
[1760799149760,7.6174,185.62,185.55,2.72]
[1760799151457,5.01453964,185.69,185.51,44.96]
[1760799151458,2.77,185.59,185.51,44.96]
[1760799151654,2.77,185.59,185.51,4.8499]
[1760799152058,7.6182,185.59,185.5,2.72]
[1760799152267,7.6182,185.59,185.5,64.72]
[1760799152767,2.77,185.57,185.5,62.0]
[1760799152966,2.77,185.57,185.46,2.72]
[1760799152967,3.26549415,185.54,185.46,2.72]
[1760799153265,2.77,185.53,185.46,2.72]
[1760799154068,2.77,185.5,185.42,2.72]
[1760799155069,2.77,185.5,185.42,7.5724]
[1760799155567,88.82893426,185.69,185.37,2.72]
[1760799155568,2.77,185.53,185.37,2.72]
[1760799155767,8.76946467,185.54,185.37,47.72]
[1760799155768,2.77,185.51,185.37,47.72]
[1760799155969,2.77,185.51,185.39,2.72]
[1760799156971,8.76946467,185.54,185.4,4.853]
[1760799157165,2.77,185.5,185.4,4.853]
[1760799157967,7.6206,185.5,185.4,4.853]
[1760799158569,2.77,185.5,185.41,2.72]
[1760799159076,8.76946467,185.54,185.39,2.72]
[1760799159077,2.77,185.54,185.39,2.72]
[1760799159568,7.6193,185.54,185.45,4.8517]
[1760799159768,7.6193,185.54,185.46,2.72]
[1760799159769,2.77,185.54,185.46,2.72]
[1760799159974,2.77,185.54,185.46,47.72]
[1760799160369,2.77,185.54,185.47,4.8511]
[1760799161677,2.77,185.54,185.47,66.8511]
[1760799161877,2.77,185.54,185.47,62.0]
[1760799163877,2.77,185.58,185.48,2.72]
[1760799164375,2.77,185.58,185.48,7.5707]
[1760799164574,2.77,185.58,185.49,2.72]
[1760799164975,2.77,185.58,185.47,2.72]
[1760799165373,2.77,185.58,185.5,4.8501]
[1760799165573,2.77,185.58,185.51,2.72]
[1760799166173,7.6185,185.58,185.51,2.72]
[1760799167771,4.8487,185.57,185.51,2.72]
[1760799168077,4.8487,185.57,185.5,2.67]
[1760799170174,7.5187,185.57,185.5,2.67]
[1760799171185,4.849,185.56,185.5,2.67]
[1760799171686,2.67,185.57,185.49,44.98]
[1760799173088,4.8493,185.55,185.49,44.98]
[1760799174686,4.8495,185.54,185.49,44.98]
[1760799174883,2.67,185.57,185.49,44.98]
[1760799175083,4.81558138,185.61,185.49,44.98]
[1760799175288,4.23866587,185.6,185.49,44.98]
[1760799175485,2.67,185.58,185.49,44.98]
[1760799175692,2.67,185.56,185.49,44.98]
[1760799175988,4.8495,185.54,185.49,44.98]
[1760799176183,4.23876699,185.6,185.49,44.98]
[1760799176386,2.67,185.58,185.49,44.98]
[1760799176694,9.81497516,185.61,185.49,44.98]
[1760799176695,4.23876699,185.57,185.49,44.98]
[1760799176886,2.67,185.6,185.49,44.98]
[1760799177083,4.23881627,185.59,185.49,44.98]
[1760799177283,4.23881627,185.58,185.49,44.98]
[1760799177484,9.81497516,185.61,185.49,44.98]
[1760799177485,7.5201,185.51,185.49,44.98]
[1760799177888,4.8501,185.51,185.49,47.65]
[1760799178387,4.8501,185.51,185.49,2.67]
[1760799178584,4.8497,185.53,185.5,2.67]
[1760799178786,5.93777579,185.58,185.47,2.67]
[1760799179989,4.8491,185.55,185.47,2.67]
[1760799180587,4.8491,185.55,185.48,2.67]
[1760799182083,4.8486,185.57,185.47,2.67]
[1760799182586,4.8486,185.57,185.52,2.67]
[1760799182993,4.8486,185.57,185.51,3.26777579]
[1760799183392,4.23787078,185.62,185.52,2.67]
[1760799183393,4.8481,185.59,185.52,2.67]
[1760799184193,4.8481,185.59,185.52,11.41]
[1760799184393,4.8476,185.61,185.54,3.26777579]
[1760799184595,4.8476,185.61,185.55,2.67]
[1760799185994,2.67,185.62,185.55,2.67]
[1760799187495,2.67,185.62,185.57,4.83870866]
[1760799187996,2.84,185.63,185.54,2.08870866]
[1760799188191,4.24065577,185.62,185.54,2.08870866]
[1760799188391,2.84,185.61,185.54,2.08870866]
[1760799188993,2.84,185.58,185.54,2.08870866]
[1760799189190,2.84,185.58,185.54,4.83870866]
[1760799191796,2.84,185.57,185.54,2.08870866]
[1760799193203,4.8487,185.57,185.54,2.08870866]
[1760799193500,4.8487,185.57,185.51,2.75]
[1760799193501,2.08870866,185.6,185.52,2.08870866]
[1760799193702,7.09372928,185.59,185.5,2.08870866]
[1760799194005,2.08870866,185.6,185.5,2.08870866]
[1760799194006,2.84,185.56,185.5,2.08870866]
[1760799194601,2.84,185.56,185.48,2.75]
[1760799194602,4.8495,185.54,185.48,4.83870866]
[1760799195303,4.8497,185.53,185.48,2.08870866]
[1760799195505,4.8497,185.53,185.49,2.75]
[1760799195705,4.8497,185.53,185.48,2.08870866]
[1760799196008,6.64855186,185.62,185.47,62.0]
[1760799196009,2.08870866,185.6,185.5,2.08870866]
[1760799196209,4.25664442,185.59,185.52,4.79870866]
[1760799196400,4.25664442,185.58,185.52,4.79870866]
[1760799196601,4.92870866,185.6,185.52,4.79870866]
[1760799196803,4.25705644,185.59,185.52,4.79870866]
[1760799197007,4.25705644,185.58,185.52,4.79870866]
[1760799197205,2.08870866,185.6,185.52,4.79870866]
[1760799197402,2.74,185.56,185.48,49.69870866]
[1760799197607,2.74,185.56,185.48,2.08870866]
[1760799197909,2.74,185.56,185.5,2.08870866]
[1760799199107,4.8492,185.55,185.5,2.08870866]
[1760799199302,4.8492,185.55,185.49,2.71]
[1760799199705,4.8492,185.55,185.49,7.5605]
[1760799199906,4.8486,185.57,185.51,2.71]
[1760799200103,2.74,185.59,185.51,2.71]
[1760799200303,2.74,185.59,185.51,7.56]
[1760799200304,4.8484,185.58,185.51,7.56]
[1760799200500,4.8484,185.58,185.51,47.61]
[1760799200708,4.8484,185.58,185.51,2.71]
[1760799202108,4.265604,185.57,185.51,2.71]
[1760799202305,4.82870866,185.59,185.51,47.61]
[1760799202516,4.26715262,185.58,185.52,2.71]
[1760799202807,2.74,185.59,185.52,47.61]
[1760799203008,9.11555309,185.58,185.52,2.71]
[1760799203304,4.26925945,185.57,185.51,7.5599]
[1760799203502,4.8484,185.58,185.51,7.5599]
[1760799203703,2.74,185.56,185.51,2.71]
[1760799203904,2.08870866,185.59,185.51,2.71]
[1760799203905,2.74,185.58,185.51,2.71]
[1760799204108,4.26934264,185.57,185.51,2.71]
[1760799204412,2.74,185.55,185.51,2.71]
[1760799205701,2.74,185.55,185.49,4.8505]
[1760799206004,2.74,185.55,185.49,49.7505]
[1760799206405,2.74,185.55,185.49,4.8505]
[1760799206606,2.74,185.55,185.49,52.4605]
[1760799207007,2.74,185.55,185.47,4.8511]
[1760799207008,4.82870866,185.55,185.47,4.8511]
[1760799207209,4.27061383,185.54,185.47,4.8511]
[1760799207409,4.27061383,185.53,185.47,4.8511]
[1760799207608,4.82870866,185.55,185.47,4.8511]
[1760799207811,4.27121651,185.54,185.47,49.7511]
[1760799208008,9.12091651,185.53,185.47,4.8511]
[1760799208208,4.82870866,185.55,185.48,2.71]
[1760799208512,4.27131923,185.54,185.48,2.71]
[1760799208707,4.82870866,185.55,185.48,2.71]
[1760799208907,4.27131871,185.54,185.48,2.71]
[1760799209111,9.67790866,185.55,185.48,2.71]
[1760799209307,4.27124028,185.54,185.48,2.71]
[1760799209507,4.82870866,185.55,185.48,2.71]
[1760799209715,4.27128047,185.54,185.48,2.71]
[1760799209907,4.82870866,185.55,185.48,2.71]
[1760799210108,4.27128099,185.54,185.48,2.71]
[1760799210308,4.82870866,185.55,185.48,2.71]
[1760799210509,4.27130046,185.54,185.48,2.71]
[1760799210709,2.74,185.52,185.48,2.71]
[1760799211105,4.8495,185.54,185.48,2.71]
[1760799211316,2.74,185.52,185.48,2.71]
[1760799211708,4.8495,185.54,185.48,7.5607]
[1760799211909,7.5888,185.56,185.48,44.88]
[1760799212114,4.27097276,185.55,185.49,2.71]
[1760799212311,7.5888,185.56,185.49,47.59]
[1760799212516,7.5888,185.56,185.49,2.71]
[1760799213109,7.5888,185.56,185.5,4.8502]
[1760799213615,7.5888,185.56,185.5,66.8502]
[1760799214417,7.5888,185.56,185.5,68.93890866]
[1760799214815,7.5888,185.56,185.5,6.93890866]
[1760799216023,7.5888,185.56,185.5,51.81890866]
[1760799216514,2.74,185.56,185.51,4.8499]
[1760799216714,4.8483,185.58,185.52,2.71]
[1760799216917,4.8483,185.58,185.51,4.8499]
[1760799216918,2.74,185.57,185.53,2.71]
[1760799217821,2.74,185.56,185.53,2.71]
[1760799225018,2.74,185.56,185.51,68.93860866]
[1760799225019,4.8483,185.58,185.51,68.93860866]
[1760799225227,4.8483,185.58,185.53,2.08870866]
[1760799225520,7.5878,185.6,185.54,44.88]
[1760799225726,7.00299576,185.59,185.55,2.71]
[1760799225920,2.74,185.59,185.55,2.71]
[1760799226314,2.74,185.59,185.55,47.59]
[1760799226520,7.5774,185.62,185.56,2.77]
[1760799226818,2.73,185.6,185.56,2.77]
[1760799227728,2.73,185.6,185.53,6.93810866]
[1760799227927,2.73,185.6,185.54,44.88]
[1760799228227,9.66630866,185.61,185.55,44.88]
[1760799228427,4.25230096,185.6,185.55,44.88]
[1760799228721,2.73,185.59,185.55,2.77]
[1760799228929,2.73,185.59,185.55,47.65]
[1760799229118,2.73,185.59,185.54,4.8492]
[1760799229318,2.73,185.59,185.55,44.88]
[1760799229528,2.73,185.59,185.56,47.65]
[1760799230222,6.93630866,185.61,185.56,2.77]
[1760799230525,6.93630866,185.61,185.54,4.8492]
[1760799230526,4.8476,185.61,185.55,4.8489]
[1760799230728,4.8476,185.61,185.57,2.77]
[1760799230925,7.5776,185.61,185.57,2.77]
[1760799231126,7.5776,185.61,185.57,47.65]
[1760799231826,7.5776,185.61,185.57,2.77]
[1760799232028,2.73,185.6,185.57,44.88]
[1760799232225,2.73,185.6,185.53,4.8494]
[1760799232621,2.73,185.6,185.53,49.7294]
[1760799232823,2.73,185.56,185.53,44.88]
[1760799233022,2.73,185.58,185.54,2.77]
[1760799233231,2.73,185.58,185.53,2.77]
[1760799233433,2.73,185.58,185.51,2.77]
[1760799233730,2.73,185.58,185.54,2.77]
[1760799236133,2.73,185.58,185.53,7.6194]
[1760799236331,2.73,185.58,185.53,4.8494]
[1760799236534,2.73,185.58,185.54,2.77]
[1760799241336,2.73,185.57,185.53,2.77]
[1760799241530,2.73,185.57,185.52,44.88]
[1760799241832,2.73,185.57,185.51,4.85]
[1760799242033,7.5787,185.57,185.51,4.85]
[1760799242234,7.5787,185.57,185.53,2.77]
[1760799242636,7.5787,185.57,185.53,47.65]
[1760799242938,4.8481,185.59,185.54,2.77]
[1760799243137,4.8481,185.59,185.55,2.77]
[1760799243541,4.8476,185.61,185.55,47.65]
[1760799243744,4.23895826,185.6,185.54,6.93790866]
[1760799244039,7.5776,185.61,185.57,2.77]
[1760799244239,2.73,185.6,185.57,2.77]
[1760799246142,2.73,185.61,185.57,2.77]
[1760799246536,2.73,185.61,185.5,62.0]
[1760799246537,2.73,185.59,185.55,44.88]
[1760799246835,2.68,185.65,185.58,2.08870866]
[1760799247041,2.68,185.65,185.57,2.67]
[1760799247042,2.68,185.64,185.6,4.75870866]
[1760799247336,7.71424845,185.69,185.6,2.67]
[1760799247536,4.23593833,185.68,185.62,3.26212849]
[1760799247738,72.48898908,185.72,185.62,5.93212849]
[1760799247937,2.68,185.67,185.59,4.848]
[1760799248132,4.23379564,185.66,185.58,27.55212849]
[1760799248337,2.68,185.65,185.58,5.93212849]
[1760799249733,2.68,185.65,185.58,50.79212849]
[1760799250145,2.68,185.65,185.58,5.93212849]
[1760799250645,2.68,185.65,185.58,67.93212849]
[1760799250946,7.5266,185.65,185.59,3.26212849]
[1760799252142,4.8475,185.61,185.53,4.8495]
[1760799252350,2.68,185.66,185.53,27.25]
[1760799252544,4.23175912,185.65,185.53,30.51212849]
[1760799252747,2.68,185.63,185.53,5.93212849]
[1760799253043,4.23175912,185.64,185.53,5.93212849]
[1760799253044,2.68,185.6,185.53,5.93212849]
[1760799253249,2.68,185.58,185.51,11.88]
[1760799253442,2.68,185.58,185.5,3.26212849]
[1760799254044,4.8489,185.56,185.5,3.26212849]
[1760799254246,7.5289,185.56,185.5,3.26212849]
[1760799254943,4.8492,185.55,185.49,2.67]
[1760799256142,7.5295,185.54,185.47,3.26212849]
[1760799257138,2.68,185.54,185.37,139.6]
[1760799257351,6.08212849,185.52,185.4,2.73]
[1760799257545,2.82,185.5,185.41,44.86]
[1760799257747,2.82,185.48,185.41,44.86]
[1760799257947,2.82,185.48,185.4,2.73]
[1760799258146,7.6711,185.48,185.4,2.73]
[1760799258346,2.82,185.48,185.4,2.73]
[1760799258850,2.82,185.48,185.4,47.59]
[1760799259244,2.82,185.48,185.4,47.61]
[1760799259451,3.26212849,185.53,185.4,47.61]
[1760799259645,4.22970476,185.52,185.41,2.73]
[1760799259845,4.22970476,185.51,185.41,2.73]
[1760799260044,2.82,185.52,185.42,44.88]
[1760799260248,2.82,185.52,185.43,2.73]
[1760799260753,4.8501,185.51,185.43,2.73]
[1760799260953,2.82,185.49,185.39,97.22085293]
[1760799261254,2.82,185.49,185.4,2.73]
[1760799261455,2.82,185.49,185.4,47.61]
[1760799261646,2.82,185.49,185.4,2.73]
[1760799262251,2.82,185.49,185.39,99.34385293]
[1760799262450,2.82,185.49,185.41,2.73]
[1760799264652,2.82,185.49,185.41,16.05]
[1760799265052,2.82,185.49,185.41,20.9025]
[1760799265854,2.82,185.49,185.41,82.9025]
[1760799269064,2.82,185.48,185.41,13.32]
[1760799269259,2.82,185.48,185.4,2.73]
[1760799269958,7.6711,185.48,185.4,2.73]
[1760799270356,7.6711,185.48,185.4,7.5828]
[1760799271666,2.82,185.5,185.4,2.73]
[1760799272862,7.6716,185.46,185.4,2.73]
[1760799278572,2.82,185.5,185.42,2.73]
[1760799279968,4.8508,185.49,185.42,7.5823]
[1760799281469,4.8502,185.51,185.44,2.73]
[1760799282572,2.82,185.53,185.44,2.73]
[1760799283773,69.40214706,185.57,185.48,2.73]
[1760799284172,2.82,185.56,185.43,43.5]
[1760799284476,2.82,185.52,185.45,7.5815]
[1760799285271,2.82,185.52,185.46,2.73]
[1760799285576,4.8497,185.53,185.46,7.5813]
[1760799285780,4.8497,185.53,185.47,2.73]
[1760799286467,7.6697,185.53,185.47,2.73]
[1760799290378,4.85,185.52,185.45,3.26212849]
[1760799290679,2.82,185.51,185.45,3.26212849]
[1760799292178,2.82,185.55,185.44,2.64]
[1760799292375,4.24540375,185.54,185.43,44.88]
[1760799292576,2.82,185.55,185.43,44.88]